Cogmind - Beta 14 @@@ ROGUE MODE // 2024.11.06 @ 15:22:55 Player: Oldman Pu Result: Destroyed by G-47 Trooper with Particle Gun Performance ------------- Evolutions (1) 500 Regions Visited (2) 400 Robots Destroyed (60) 300 Value Destroyed (1434) 1434 Prototype IDs (5) 100 Alien Tech Used (0) 0 Bonus (0) 0 TOTAL SCORE: 2734 Bonus ------- None Cogmind --------- Core Integrity 0/400 Matter 277/300 Energy 280/280 System Corruption 3% Temperature Cool (9) Movement Rolling (115) Ox2 Location -9/Materials Parts ------- > --- POWER (1) -------- Heavy Ion Engine > --- PROPULSION (2) --- Wheel Armored Wheel > --- UTILITY (4) ------ Improved Heat Sink High-capacity Storage Unit Advanced Targeting Computer Light Armor Plating > --- WEAPON (2) ------- Field Laser Improved Assault Rifle > --- INVENTORY (20) --- Improved Ion Engine Improved Ion Engine Improved Ion Engine Heat Sink Large Storage Unit Huge Storage Unit High-capacity Matter Pod (200) Advanced Targeting Computer Advanced Targeting Computer Advanced Targeting Computer Field Laser Field Laser Field Laser Advanced Beam Cannon Heavy Assault Rifle Improved Assault Rifle Improved Assault Rifle Improved Assault Rifle Improved Assault Rifle Improved Assault Rifle Peak State ------------ > --- POWER ------------ Heavy Ion Engine > --- PROPULSION ------- Wheel Armored Wheel > --- UTILITY ---------- Improved Heat Sink High-capacity Storage Unit Advanced Targeting Computer Light Armor Plating > --- WEAPON ----------- Improved Assault Rifle Improved Assault Rifle > --- INVENTORY -------- Improved Ion Engine Improved Ion Engine Improved Ion Engine Heat Sink Large Storage Unit Huge Storage Unit High-capacity Matter Pod Advanced Targeting Computer Beam Rifle Advanced Beam Cannon Heavy Assault Rifle Improved Assault Rifle Improved Assault Rifle Improved Assault Rifle Improved Assault Rifle Improved Assault Rifle Light Cannon Light Cannon Improved Light Cannon Improved Light Cannon [Rating: 24] Favorites ----------- Power Ion Engine Engine Ion Engine Propulsion Wheel Wheel Wheel Utility Improved Heat Sink Device Improved Heat Sink Storage Huge Storage Unit Processor Targeting Computer Protection Light Armor Plating Weapon Medium Laser Energy Gun Medium Laser Energy Cannon Advanced Beam Cannon Ballistic Gun Improved Assault Rifle Build | -11 -10 -9 ------- Run | Yrd Mat Mat Slots Evolved 2 | . . 2 Power . | . . . Propulsion . | . . . Utility 2 | . . 2 Weapon . | . . . Parts Attached 60 | 7 21 32 Power 9 | 2 3 4 Engine 9 | 2 3 4 Core . | . . . Reactor . | . . . Propulsion 13 | 2 5 6 Treads . | . . . Leg . | . . . Wheel 13 | 2 5 6 Hover . | . . . Flight . | . . . Utility 19 | 1 5 13 Device 10 | . 3 7 Storage 5 | 1 2 2 Processor 3 | . . 3 Hackware . | . . . Protection 1 | . . 1 Artifact . | . . . Weapon 19 | 2 8 9 Energy Gun 12 | 1 7 4 Energy Cannon 1 | . . 1 Ballistic Gun 6 | 1 1 4 Ballistic Cannon . | . . . Launcher . | . . . Special Weapon . | . . . Impact Weapon . | . . . Slashing Weapon . | . . . Piercing Weapon . | . . . Special Melee Weapon . | . . . Unidentified Prototypes 3 | . . 3 Parts Lost 17 | . 5 12 Power 2 | . 1 1 Propulsion 5 | . 1 4 Utility 5 | . 1 4 Weapon 5 | . 2 3 Highest Loss Streak 11 | . 3 11 To Critical Strikes . | . . . Average Slot Usage (%) 92 | . 91 93 Engine 11 | . 13 9 Wheel 21 | . 22 21 Device 15 | . 12 18 Storage 14 | . 14 14 Processor 2 | . . 5 Energy Gun 17 | . 23 9 Energy Cannon 1 | . . 4 Ballistic Gun 6 | . 4 8 Peak Build Rating 24 | 6 10 24 Average Rating 11 | 4 7 17 On Entrance 5 | . 6 9 Naked Turns . | . . . Heaviest Build 90 | 13 90 62 Greatest Support 26 | 26 26 22 Greatest Overweight (x) 8 | . 8 5 Average Overweight (x) 2 | . 3 1 Largest Inventory Capacity 25 | 8 25 20 Average Capacity 19 | 6 20 18 Most Carried 20 | 2 11 20 Average Carried 10 | 1 7 15 Final Capacity 20 | 8 15 20 Final Carried 20 | 2 10 20 Class Distribution -------------------- 81% | Mutant 18% | Scavenger-Mutant Dominant Class ---------------- Mutant | -10/Materials Mutant | -9/Materials Resources | -11 -10 -9 ----------- Run | Yrd Mat Mat Matter Collected 1189 | 196 309 684 Remotely . | . . . Salvage Created 2089 | . 835 1254 Parts 120 | . 51 69 Haulers Intercepted 5 | . 2 3 Recyclers Shooed 2 | . 2 . Parts Field Recycled . | . . . Retrieved Matter . | . . . Parts Self-Destructed . | . . . Prevented . | . . . Kills | -11 -10 -9 ------- Run | Yrd Mat Mat Combat Hostiles Destroyed 42 | . 18 24 Guns 31 | . 16 15 Cannons 8 | . . 8 AOE 1 | . 1 . Classes Destroyed 8 | . 6 2 Worker 7 | . 3 4 Hauler 5 | . 2 3 Recycler 1 | . 1 . Watcher 5 | . 3 2 Swarmer 9 | . 6 3 Grunt 27 | . 12 15 Brawler 1 | . . 1 Sentry 5 | . . 5 Best Kill Streak 9 | . 4 9 Combat Bots Only 4 | . 3 4 Max Kills in Single Turn 1 | . 1 1 Gunslinging . | . . . Exploded 1 | . 1 . Melee . | . . . Uniques/NPCs Destroyed . | . . . Combat | -11 -10 -9 -------- Run | Yrd Mat Mat Hostile Shots Fired 244 | . 83 161 Missed 66 | . 28 38 Damage Taken 2396 | . 728 1668 Core 582 | . 171 411 Absorbed by Shields . | . . . Core Remaining (%) 65 | 100 31 . Volleys Fired 165 | . 88 77 Largest 2 | . 2 2 Hottest 124 | . 100 124 Shots Fired 322 | . 172 150 Gun 284 | . 172 112 Cannon 38 | . . 38 Launcher . | . . . Special . | . . . Kinetic 85 | . 23 62 Thermal 237 | . 149 88 Explosive . | . . . Electromagnetic . | . . . Robot Hit Streak 18 | . 18 15 Robot Miss Streak 6 | . 6 4 Penetration Max . | . . . Secondary Targets 3 | . 2 1 Max Gunslinging Chain 1 | . 1 1 Shots Hit Robots 220 | . 107 113 Core Hits 85 | . 41 44 Critical Kills . | . . . Critical Parts Destroyed 1 | . . 1 Critical Strikes 16 | . 11 5 Burn 15 | . 11 4 Destroy 1 | . . 1 Melee Attacks . | . . . Impact . | . . . Slashing . | . . . Piercing . | . . . Sneak Attacks . | . . . Combat Hostiles . | . . . Follow-up Attacks . | . . . Damage Inflicted 3213 | . 1338 1875 Guns 2530 | . 1338 1192 Cannons 678 | . . 678 Explosions . | . . . Melee . | . . . Ramming 5 | . . 5 Kinetic 928 | . 178 750 Thermal 2280 | . 1160 1120 Explosive . | . . . Electromagnetic . | . . . Impact . | . . . Slashing . | . . . Piercing . | . . . Highest Corruption 3 | . 1 3 Average Corruption 1 | . 1 3 Corruption Purged . | . . . Corruption Blocked . | . . . Effects 23 | . 8 15 Message Errors 8 | . 3 5 Matter Fused 6 | . 2 4 Heat Flow Errors 2 | . . 2 Energy Discharges 1 | . . 1 Data Loss (minor) 2 | . 2 . Data Loss (major) 2 | . 1 1 Misfires 1 | . . 1 Weapon Failures 1 | . . 1 Overload Shots . | . . . Overflow Damage 4 | . . 4 Projectiles 4 | . . 4 Explosions . | . . . Melee . | . . . Knockbacks 1 | . . 1 Impact 1 | . . 1 Kinetic . | . . . Secondary . | . . . Self-Inflicted Damage 2 | . . 2 Shots . | . . . Rammed 1 | . . 1 Targets Rammed 1 | . . 1 Kicked . | . . . Crushed . | . . . Highest Temperature 357 | . 117 357 Average Temperature 35 | . 28 50 Received Heat Transfer 948 | . 213 735 Siege Activations . | . . . Robots Corrupted . | . . . Combat Hostiles . | . . . Parts Fried . | . . . Impact Corruptions . | . . . Robots Melted 2 | . 1 1 Combat Hostiles 2 | . 1 1 Parts Melted 20 | . 11 9 Heat Transferred 6847 | . 4183 2664 Parts Sabotaged . | . . . Parts Stolen . | . . . Parts Stripped . | . . . Power Chain Reactions . | . . . Alert | -11 -10 -9 ------- Run | Yrd Mat Mat Peak Influence 393 | . 241 393 Initial 49 | . . 49 Average 159 | . 104 246 Maximum Alert Level 1 | . 1 1 Low Security (%) 74 | 100 97 40 Level 1 25 | . 2 59 Level 2 . | . . . Level 3 . | . . . Level 4 . | . . . Level 5 . | . . . High Security . | . . . Max Security . | . . . Squads Dispatched 7 | . 5 2 Investigation 4 | . 3 1 Extermination . | . . . Reinforcement 3 | . 2 1 Assault . | . . . Garrison . | . . . Intercept . | . . . Searches Triggered . | . . . Construction Impeded . | . . . Haulers Reinforced . | . . . Active Scanning Responses . | . . . Cargo Convoy Interrupts . | . . . Stealth | -11 -10 -9 --------- Run | Yrd Mat Mat Distress Signals 4 | . . 4 Communications Jammed . | . . . Distress Signals . | . . . Times Spotted 62 | . 28 34 Peak Tracking Total 7 | . 3 7 Tactical Retreats 4 | . 1 3 Traps | -11 -10 -9 ------- Run | Yrd Mat Mat Traps Triggered 7 | . 6 1 Indirectly . | . . . Trap Hack Attempts . | . . . Triggered . | . . . Disarmed . | . . . Reprogrammed . | . . . Reused . | . . . Traps Extracted . | . . . Installed . | . . . Triggered . | . . . Machines | -11 -10 -9 ---------- Run | Yrd Mat Mat Machines Disabled 1 | . . 1 Max in Single Turn 1 | . . 1 Machines Repaired . | . . . Machines Dismantled . | . . . Machines Sabotaged . | . . . Overloaded Fab Kills . | . . . Hacking | -11 -10 -9 --------- Run | Yrd Mat Mat Machines Accessed 6 | . 4 2 Terminals 5 | . 4 1 Fabricators . | . . . Repair Stations . | . . . Recycling Units . | . . . Scanalyzers 1 | . . 1 Garrison Access . | . . . Total Hacks 16 | . 11 5 Successful 6 | . 5 1 Failed 10 | . 6 4 Catastrophic 1 | . 1 . Database Lockouts . | . . . Manual . | . . . Terminals 14 | . 11 3 Fabricators . | . . . Repair Stations . | . . . Recycling Units . | . . . Scanalyzers 2 | . . 2 Garrison Access . | . . . Terminal Hacks 6 | . 5 1 Prototype ID Bank 1 | . 1 . Emergency Access Points 1 | . . 1 Recycling Unit Index 1 | . 1 . Locate Traps 1 | . 1 . Maintenance Status 1 | . 1 . Investigation Status 1 | . 1 . Fabricator Hacks . | . . . Repair Station Hacks . | . . . Recycling Unit Hacks . | . . . Scanalyzer . | . . . Garrison Access Hacks . | . . . Unauthorized Hacks . | . . . Terminals . | . . . Fabricators . | . . . Repair Stations . | . . . Recycling Units . | . . . Scanalyzers . | . . . Garrison Access . | . . . Data Cores Recovered . | . . . Used . | . . . Hacking Detections 6 | . 4 2 Full Trace Events 2 | . 2 . Feedback Events . | . . . Feedback Blocked . | . . . Robot Schematics Acquired . | . . . Robots Built . | . . . Authchips . | . . . Time . | . . . Total Robot Build Rating . | . . . Part Schematics Acquired . | . . . Parts Built . | . . . Authchips . | . . . Time . | . . . Total Part Build Rating . | . . . Parts Repaired . | . . . Time . | . . . Parts Recycled . | . . . Recycled Matter . | . . . Retrieved Matter . | . . . Retrieved Components . | . . . Parts Scanalyzed . | . . . Part Schematics Acquired . | . . . Parts Damaged . | . . . Bothacking | -11 -10 -9 ------------ Run | Yrd Mat Mat Used RIF Installer . | . . . Robots Hacked . | . . . Non-combat . | . . . Combat . | . . . Robot Hacks Applied . | . . . Relay Couplers Released . | . . . Fabnet Peak Effective % . | . . . Robots Rewired . | . . . Allies Hacked . | . . . Hacks Repelled . | . . . Allies | -11 -10 -9 -------- Run | Yrd Mat Mat Total Allies . | . . . Largest Group . | . . . Highest-Rated Group . | . . . Highest-Rated Ally . | . . . Total Orders . | . . . Ally Attacks . | . . . Total Damage . | . . . Kills . | . . . Allies Corrupted . | . . . Allies Melted . | . . . Intel | -11 -10 -9 ------- Run | Yrd Mat Mat Robot Analysis Total . | . . . Derelict Logs Recovered . | . . . Drone Launches . | . . . Drone Recoveries . | . . . Exploration | -11 -10 -9 ------------- Run | Yrd Mat Mat Turns Passed 2522 | 54 1451 1017 Spaces Moved 1366 | 49 768 549 Core 2 | 2 . . Treads . | . . . Legs . | . . . Wheels 1364 | 47 768 549 Hover . | . . . Flight . | . . . Fastest Speed 50 | 50 90 95 Average Speed 121 | 88 132 108 Slowest Speed 200 | 90 200 155 Overloaded Moves . | . . . Propulsion Burnouts . | . . . Robots Hopped . | . . . Cave-ins Triggered . | . . . Exploration Rate (%) 47 | 3 96 42 Regions Visited 2 Branch Regions . Pre-discovered Areas . | . . . Known Exits Taken . | . . . Unknown Exits Taken 2 | 1 1 . Scrap Searched . | . . . Spaces Dug . | . . . Terrain Destroyed . | . . . Melee . | . . . Projectile . | . . . AOE . | . . . Terrain Rammed . | . . . Walls Destroyed . | . . . Machines Disabled . | . . . Actions | -11 -10 -9 --------- Run | Yrd Mat Mat Total 1898 | 56 1022 820 Wait 251 | . 131 120 Move 1364 | 48 767 549 Hop . | . . . Pick Up 33 | 1 10 22 Fast Attach 29 | 6 11 12 Attach 14 | . 3 11 Detach 3 | . . 3 Swap 17 | 1 7 9 Drop 21 | . 5 16 Fire 165 | . 88 77 Melee . | . . . Ram 1 | . . 1 Kick . | . . . Crush . | . . . Escape Stasis . | . . . Rewire . | . . . Trap . | . . . Miscellaneous . | . . . Route ------- -11/Scrapyard -10/Materials (discovered 4 exits: *Mat x3 / [*Min]) -9/Materials (discovered 1 exit: [*Min]) History --------- Turn | Location | Event 14 | -11/Scrapyard | Discovered new exit (range 15) 55 | -11/Scrapyard | Entered Materials 310 | -10/Materials | Build established: Mutant 358 | -10/Materials | Lost 3 parts (1n2w) 376 | -10/Materials | Discovered new exit (range 14) 555 | -10/Materials | Core integrity fell below 50% 1044 | -10/Materials | Discovered new exit (range 6) 1266 | -10/Materials | Discovered new exit (range 16) 1438 | -10/Materials | Discovered new exit (range 9) 1506 | -10/Materials | Entered another Materials area 1506 | -9/Materials | Evolved 2 slots: Utility x2 1919 | -9/Materials | Build established: Scavenger-Mutant 2094 | -9/Materials | Core integrity fell below 50% 2104 | -9/Materials | Core integrity fell below 20% 2157 | -9/Materials | Lost 11 parts (1p4n3u3w) 2293 | -9/Materials | Discovered new exit (range 6) 2362 | -9/Materials | Build established: Mutant 2523 | -9/Materials | Destroyed by G-47 Trooper with Particle Gun Last Messages --------------- 02436_ U-05 Engineer works on Material Compactor. 02450_ SHKOFZZRU=M>SVTRQ|JANBO&AG&EPAFVI= 02452_ U-05 Engineer works on Material Compactor. 02454_ Acquired Adv. Targeting Computer. 02458_ U-05 Engineer works on Material Compactor. 02459_ Dropped Lgt. Cannon. 02460_ Acquired Adv. Targeting Computer. 02463_ U-05 Engineer works on Material Compactor. 02466_ Dropped Imp. Assault Rifle. 02466_ Acquired Field Laser. 02468_ Dropped Imp. Light Cannon. 02469_ U-05 Engineer works on Material Compactor. 02470_ Acquired Field Laser. 02473_ Dropped Beam Rifle. 02475_ Acquired Field Laser. 02475_ U-05 Engineer works on Material Compactor. 02478_ R-06 Scavenger collects Imp. Light Cannon. 02479_ U-05 Engineer works on Material Compactor. 02482_ R-06 Scavenger collects Lgt. Cannon. 02521_ K-01 Serf collects debris. Map ----- +----------------------------------------------------+ | #???????????????????????????????????????????? | | #???????????????????????????????????????????? | | ######???????????????????????????????????????????? | | #######???#######????????????????????????????????? | | ##### #????????????????????????????????? | | #????????????????????????????????? | | < T #????????????????????????????????? | | #????????????????????????????????? | | "##### #????????????????????????????????? | | !"| "#???## ##????????????????????????????????? | | """"""#????# #?????????????????????????????????? | | #######????# +?????????????????????????????????? | | ???????????# #?????????????????????????????????? | | ???????????# #?????????????????????????????????? | | ???????????# #?????????????????????????????????? | | ?########### #?????????????????????????????????? | | ?# ## ################??????????????????? | | ?# """ ## ## #??????????????????? | | ?# """ ## ## #??????????????????? | | ?# """ # # """"" #??????????????????? | | ?# # # """"""""" #??????????????????? | | ??"" "" + % # """ """ #??????????????????? | | ??"Y """ # # #??????????????????? | | ??"" """ # #######+#######??????????????????? | | ?# #####%#???# ==#??????????????????? | | ?##########???# ##### @ ==#??????????????????? | | ??????????????# ug ^ #??????????????????? | | ??????????????# #??????????????????? | | ??????????????# """ #??????????????????? | | ??????????????# ^ """"" #??????????????????? | | ??????????????# """"" #####??????????????????? | | ??????????????# """"" #??????????????????????? | | ??????????????# """ #??????????????????????? | | ??????????????# k #??????????????????????? | | ??????????????# = ?????????????????????? | | ????????????? ????????????????????? | | ??????????? ??????????????????? | | ?????????? """ ### #####?????????????????? | | ????????? """ #?# #?????????????????????? | | ????????? ???"" #?#! !#?????????????????????? | | ????????????? ??##!!!!##?????????????????????? | | ????????????? ???######??????????????????????? | | ????????????""" ????????????????????????????????? | | ??????????????"? ????????????????????????????????? | | ?????????????????????????????????????????????????? | | ?????????????????????????????????????????????????? | | ?????????????????????????????????????????????????? | | ?????????????????????????????????????????????????? | | ?????????????????????????????????????????????????? | | ?????????????????????????????????????????????????? | +----------------------------------------------------+ Best States ------------- Heat Dissipation 62 Energy Generation 14 Energy Capacity 280 Matter Stores 500 Matter Capacity 500 Sight Range 16 Terrain Scan Density 10 Armor Coverage 150 Evasion (%) 42 Targeting Accuracy 8 Item Schematics ----------------- None Robot Schematics ------------------ None Fabricated ------------ Nothing Alien Tech Used ----------------- None Achievements -------------- None Challenges ------------ None Game ------ Seed GhostGyrokineticFlightbrick Manual? 0 Play Time 00:26:38 Cumulative 298.5 hours Start 2024.11.06 @ 14:56:37 End 2024.11.06 @ 15:22:55 Sessions 1 Manual Loads 0 Difficulty Rogue Special Mode None Game No. 249 Rogue 237 Adventurer 12 Explorer 0 Win Type - Total 1 Types 1/0/0/0/0/0/0/0/0 Lore% 22 Gallery% 48 Achievement% 37 Wizard Run 0 Options --------- Layout 1 ASCII 0 Keyboard 0 Movement Mouse Keybinds 0 Fullscreen 1 Font 32/SmallcapsGlow Map View 77x35 Zoom Use 0% Tactical HUD 1 Map Filters NONE Filters NONE Steam 1 RUN: 7fa77e6c-e127-46d8-8894-8795ce7c0099